fUSD/lending_fUSD_20250826
["ID","MTS","AMOUNT","RATE_DAILY","PERIOD"]
[381396831,1756185089195,-772.1,0.00016712,2]
[381396832,1756185089205,-1696.44,0.00016712,2]
[381396833,1756185089215,-400.0,0.00016712,2]
[381396834,1756185089227,-400.0,0.00016712,2]
[381396835,1756185089237,-431.92,0.00016712,2]
[381396836,1756185089246,-400.0,0.00016712,2]
[381396837,1756185089256,-556.57,0.00016712,2]
[381396838,1756185089266,-1254.88,0.00016712,2]
[381396839,1756185089275,-466.82,0.00016712,2]
[381396840,1756185089284,-453.93,0.00016712,2]
[381396841,1756185089295,-400.0,0.00016712,2]
[381396842,1756185089304,-627.54,0.00016712,2]
[381396843,1756185089316,-577.23,0.00016712,2]
[381396844,1756185089325,-630.88,0.00016712,2]
[381396845,1756185089335,-400.0,0.00016712,2]
[381396846,1756185089345,-400.0,0.00016712,2]
[381396847,1756185089354,-400.0,0.00016712,2]
[381396848,1756185089364,-1171.83,0.00016712,2]
[381396849,1756185089373,-400.0,0.00016712,2]
[381396850,1756185089382,-840.99,0.00016712,2]
[381396851,1756185089393,-728.51,0.00016712,2]
[381396852,1756185089402,-507.81,0.00016712,2]
[381396853,1756185089412,-400.0,0.00016712,2]
[381396854,1756185089422,-882.97,0.00016712,2]
[381396855,1756185089433,-400.0,0.00016712,2]
[381396856,1756185089443,-870.8,0.00016712,2]
[381396857,1756185089453,-1126.11,0.00016712,2]
[381396858,1756185089463,-400.0,0.00016712,2]
[381396859,1756185089473,-400.0,0.00016712,2]
[381396860,1756185089484,-1214.94,0.00016712,2]
[381396861,1756185089494,-1417.37,0.00016712,2]
[381396862,1756185089504,-400.0,0.00016712,2]
[381396863,1756185089514,-523.1,0.00016712,2]
[381396864,1756185089524,-1284.26,0.00016712,2]
[381396865,1756185089533,-400.0,0.00016712,2]
[381396866,1756185089542,-1560.06,0.00016712,2]
[381396867,1756185089551,-1212.92,0.00016712,2]
[381396868,1756185089560,-1009.02,0.00016712,2]
[381396869,1756185089569,-619.85,0.00016712,2]
[381396870,1756185089579,-519.8,0.00016712,2]
[381396871,1756185089588,-400.0,0.00016712,2]
[381396872,1756185089597,-689.08,0.00016712,2]
[381396873,1756185089606,-473.64,0.00016712,2]
[381396874,1756185089616,-1130.17,0.00016712,2]
[381396875,1756185089625,-613.11,0.00016712,2]
[381396876,1756185090000,-547.98,0.00016712,2]
[381396877,1756185090013,-491.37,0.00016712,2]
[381396878,1756185090024,-400.0,0.00016712,2]
[381396879,1756185090034,-1204.85,0.00016712,2]
[381396880,1756185090043,-1258.14,0.00016712,2]
[381396881,1756185090053,-400.0,0.00016712,2]
[381396882,1756185090064,-400.0,0.00016712,2]
[381396883,1756185090075,-400.0,0.00016712,2]
[381396884,1756185090084,-400.0,0.00016712,2]
[381396885,1756185090094,-743.23,0.00016712,2]
[381396886,1756185090103,-853.0,0.00016712,2]
[381396887,1756185090112,-1211.77,0.00016712,2]
[381396888,1756185090122,-400.0,0.00016712,2]
[381396889,1756185090131,-1015.19,0.00016712,2]
[381396890,1756185090141,-716.92,0.00016712,2]
[381396891,1756185090151,-1387.66,0.00016712,2]
[381396892,1756185090160,-400.0,0.00016712,2]
[381396893,1756185090170,-1320.35,0.00016712,2]
[381396894,1756185090179,-496.44,0.00016712,2]
[381396895,1756185090189,-1252.32,0.00016712,2]
[381396896,1756185090198,-1766.22,0.00016712,2]
[381396897,1756185090207,-1630.14,0.00016712,2]
[381396898,1756185090219,-409.0,0.00016712,2]
[381396899,1756185090230,-400.0,0.00016712,2]
[381396900,1756185090242,-755.04,0.00016712,2]
[381396901,1756185090252,-343.44875,0.00016712,2]
[381396902,1756185090262,-400.0,0.00016712,2]
[381396903,1756185090272,-1037.83,0.00016712,2]
[381396904,1756185090282,-400.0,0.00016712,2]
[381396905,1756185090291,-400.0,0.00016712,2]
[381396906,1756185090301,-860.44,0.00016712,2]
[381396907,1756185090310,-400.0,0.00016712,2]
[381396908,1756185090320,-603.97,0.00016712,2]
[381396909,1756185090329,-1020.12,0.00016712,2]
[381396910,1756185090339,-400.0,0.00016712,2]
[381396911,1756185090349,-400.0,0.00016712,2]
[381396912,1756185090359,-400.0,0.00016712,2]
[381396913,1756185090369,-400.0,0.00016712,2]
[381396914,1756185090379,-400.0,0.00016712,2]
[381396915,1756185090388,-1202.85,0.00016712,2]
[381396916,1756185090398,-502.27,0.00016712,2]
[381396917,1756185090407,-518.67,0.00016712,2]
[381396918,1756185090417,-658.4,0.00016712,2]
[381396919,1756185090426,-1460.199064,0.00016712,2]
[381396920,1756185090438,-715.24,0.00016712,2]
[381396921,1756185090447,-400.0,0.00016712,2]
[381396922,1756185090457,-431.95,0.00016712,2]
[381396923,1756185090466,-778.49,0.00016712,2]
[381396924,1756185090475,-497.0,0.00016712,2]
[381396925,1756185090485,-400.0,0.00016712,2]
[381396926,1756185090494,-1377.54,0.00016712,2]
[381396927,1756185090503,-1059.93,0.00016712,2]
[381396928,1756185090513,-400.0,0.00016712,2]
[381396929,1756185090524,-1022.45,0.00016712,2]
[381396930,1756185090535,-400.0,0.00016712,2]
[381396931,1756185090544,-773.78,0.00016712,2]
[381396932,1756185090554,-400.0,0.00016712,2]
[381396933,1756185090563,-400.0,0.00016712,2]
[381396934,1756185090572,-400.0,0.00016712,2]
[381396935,1756185090582,-806.64,0.00016712,2]
[381396936,1756185090591,-1361.84,0.00016712,2]
[381396937,1756185090601,-400.0,0.00016712,2]
[381396938,1756185090611,-400.0,0.00016712,2]
[381396939,1756185090621,-729.3,0.00016712,2]
[381396940,1756185090631,-400.0,0.00016712,2]
[381396941,1756185090640,-400.0,0.00016712,2]
[381396942,1756185090650,-801.26,0.00016712,2]
[381396943,1756185090659,-612.91,0.00016712,2]
[381396944,1756185090669,-7354.8,0.00016712,2]
[381396945,1756185090678,-1291.65,0.00016712,2]
[381396946,1756185090687,-400.0,0.00016712,2]
[381396947,1756185090697,-400.0,0.00016712,2]
[381396948,1756185090707,-900.48,0.00016712,2]
[381396949,1756185090717,-724.77,0.00016712,2]
[381396950,1756185090726,-1042.93,0.00016712,2]
[381396951,1756185090735,-534.68,0.00016712,2]
[381396952,1756185090746,-400.0,0.00016712,2]
[381396953,1756185090755,-400.0,0.00016712,2]
[381396954,1756185090764,-400.0,0.00016712,2]
[381396955,1756185090775,-1108.04,0.00016712,2]
[381396956,1756185090786,-400.0,0.00016712,2]
[381396957,1756185090795,-400.0,0.00016712,2]
[381396958,1756185090804,-672.94,0.00016712,2]
[381396959,1756185090814,-843.77,0.00016712,2]
[381396960,1756185090823,-710.67,0.00016712,2]
[381396961,1756185090833,-713.49,0.00016712,2]
[381396962,1756185090843,-400.0,0.00016712,2]
[381396963,1756185090852,-1603.49,0.00016712,2]
[381396964,1756185090861,-1128.06,0.00016712,2]
[381396965,1756185090870,-817.81,0.00016712,2]
[381396966,1756185090881,-733.84,0.00016712,2]
[381396967,1756185090891,-980.62,0.00016712,2]
[381396968,1756185090900,-400.0,0.00016712,2]
[381396969,1756185090909,-668.01,0.00016712,2]
[381396970,1756185090919,-707.29,0.00016712,2]
[381396971,1756185090928,-4703.96,0.00016712,2]
[381396972,1756185090938,-914.94,0.00016712,2]
[381396973,1756185090947,-400.0,0.00016712,2]
[381396974,1756185090956,-2766.74,0.00016712,2]
[381396975,1756185090965,-515.14,0.00016712,2]
[381396976,1756185090974,-1124.0,0.00016712,2]
[381396977,1756185090983,-1838.31,0.00016712,2]
[381396978,1756185090992,-400.0,0.00016712,2]
[381396979,1756185091001,-400.0,0.00016712,2]
[381396980,1756185091011,-1381.47,0.00016712,2]
[381396981,1756185091020,-400.0,0.00016712,2]
[381396982,1756185091030,-708.62,0.00016712,2]
[381396983,1756185091039,-1148.31,0.00016712,2]
[381396984,1756185091049,-400.0,0.00016712,2]
[381396985,1756185091058,-515.12,0.00016712,2]
[381396986,1756185091068,-400.0,0.00016712,2]
[381396987,1756185091077,-717.61,0.00016712,2]
[381396988,1756185091087,-1440.43,0.00016712,2]
[381396989,1756185091096,-918.74,0.00016712,2]
[381396990,1756185091106,-940.48,0.00016712,2]
[381396991,1756185091115,-400.0,0.00016712,2]
[381396992,1756185091125,-400.0,0.00016712,2]
[381396993,1756185091134,-1374.0,0.00016712,2]
[381396994,1756185091143,-400.0,0.00016712,2]
[381396995,1756185091153,-632.84,0.00016712,2]
[381396996,1756185091162,-1545.82,0.00016712,2]
[381396997,1756185091172,-400.0,0.00016712,2]
[381396998,1756185091181,-400.0,0.00016712,2]
[381396999,1756185091191,-400.0,0.00016712,2]
[381397000,1756185091200,-529.08,0.00016712,2]
[381397001,1756185091209,-777.79,0.00016712,2]
[381397002,1756185091218,-692.1,0.00016712,2]
[381397003,1756185091227,-889.12,0.00016712,2]
[381397004,1756185091237,-522.6,0.00016712,2]
[381397005,1756185091246,-400.0,0.00016712,2]
[381397006,1756185091255,-889.33,0.00016712,2]
[381397007,1756185091265,-900.86,0.00016712,2]
[381397008,1756185091274,-399.61554049,0.00016712,2]
[381397009,1756185091283,-1844.71,0.00016712,2]
[381397010,1756185091292,-400.0,0.00016712,2]
[381397011,1756185091302,-570.5,0.00016712,2]
[381397012,1756185091311,-1112.62,0.00016712,2]
[381397013,1756185091320,-400.0,0.00016712,2]
[381397014,1756185091329,-698.74,0.00016712,2]
[381397015,1756185091339,-400.0,0.00016712,2]
[381397016,1756185091349,-1194.81,0.00016712,2]
[381397017,1756185091358,-646.67,0.00016712,2]
[381397018,1756185091367,-400.0,0.00016712,2]
[381397019,1756185091377,-400.0,0.00016712,2]
[381397020,1756185091386,-301.03148338,0.00016712,2]
[381397021,1756185091395,-400.0,0.00016712,2]
[381397022,1756185091405,-524.12613905,0.00016712,2]
[381397023,1756185091414,-799.24,0.00016712,2]
[381397024,1756185091423,-400.0,0.00016712,2]
[381397025,1756185091433,-525.84626222,0.00016712,2]
[381397026,1756185091442,-639.24,0.00016712,2]
[381397027,1756185091452,-712.45,0.00016712,2]
[381397028,1756185091461,-400.0,0.00016712,2]
[381397029,1756185091471,-649.29,0.00016712,2]
[381397030,1756185091480,-694.05,0.00016712,2]
[381397031,1756185091490,-1372.88,0.00016712,2]
[381397032,1756185091500,-435.22,0.00016712,2]
[381397033,1756185091509,-893.58,0.00016712,2]
[381397034,1756185091520,-835.85,0.00016712,2]
[381397035,1756185091529,-477.45,0.00016712,2]
[381397036,1756185091538,-820.22,0.00016712,2]
[381397037,1756185091547,-1349.89,0.00016712,2]
[381397038,1756185091557,-1046.15,0.00016712,2]
[381397039,1756185091566,-1164.46,0.00016712,2]
[381397040,1756185091576,-1295.44,0.00016712,2]
[381397041,1756185091586,-1159.52,0.00016712,2]
[381397042,1756185091595,-502.61,0.00016712,2]
[381397043,1756185091605,-400.0,0.00016712,2]
[381397044,1756185091615,-400.0,0.00016712,2]
[381397045,1756185091624,-400.0,0.00016712,2]
[381397046,1756185091634,-555.93,0.00016712,2]
[381397047,1756185091645,-400.0,0.00016712,2]
[381397048,1756185091655,-400.0,0.00016712,2]
[381397049,1756185091668,-721.88,0.00016712,2]
[381397050,1756185091677,-622.58,0.00016712,2]
[381397051,1756185091686,-1204.04,0.00016712,2]
[381397052,1756185091696,-400.0,0.00016712,2]
[381397053,1756185091709,-400.0,0.00016712,2]
[381397054,1756185091719,-400.0,0.00016712,2]
[381397055,1756185091728,-400.0,0.00016712,2]
[381397056,1756185091738,-400.0,0.00016712,2]
[381397057,1756185091751,-1147.15,0.00016712,2]
[381397058,1756185091761,-678.83,0.00016712,2]
[381397059,1756185091772,-658.04,0.00016712,2]
[381397060,1756185091781,-621.48,0.00016712,2]
[381397061,1756185091793,-744.1,0.00016712,2]
[381397062,1756185091804,-877.5,0.00016712,2]
[381397063,1756185091814,-609.98,0.00016712,2]
[381397064,1756185091823,-400.0,0.00016712,2]
[381397065,1756185091833,-1008.47,0.00016712,2]
[381397066,1756185091842,-400.0,0.00016712,2]
[381397067,1756185091852,-400.0,0.00016712,2]
[381397068,1756185091861,-694.05,0.00016712,2]
[381397069,1756185091870,-717.36,0.00016712,2]
[381397070,1756185091879,-631.04,0.00016712,2]
[381397071,1756185091888,-782.6,0.00016712,2]
[381397072,1756185091898,-1756.65,0.00016712,2]
[381397073,1756185091907,-646.74,0.00016712,2]
[381397074,1756185091916,-400.0,0.00016712,2]
[381397075,1756185091926,-831.43,0.00016712,2]
[381397076,1756185091935,-698.9,0.00016712,2]
[381397077,1756185091944,-400.0,0.00016712,2]
[381397078,1756185091953,-400.0,0.00016712,2]
[381397079,1756185091962,-515.96,0.00016712,2]
[381397080,1756185091971,-412.08931625,0.00016712,2]
[381397081,1756185091980,-758.56,0.00016712,2]
[381397082,1756185091990,-1064.01,0.00016712,2]
[381397083,1756185091999,-1152.64,0.00016712,2]
[381397084,1756185092008,-1295.84,0.00016712,2]
[381397085,1756185092017,-943.07,0.00016712,2]
[381397086,1756185092027,-3022.36,0.00016712,2]
[381397087,1756185092037,-529.45,0.00016712,2]
[381397088,1756185092046,-1300.39,0.00016712,2]
[381397089,1756185092055,-400.0,0.00016712,2]
[381397090,1756185092064,-400.0,0.00016712,2]
[381397091,1756185092073,-808.25,0.00016712,2]
[381397092,1756185092083,-400.0,0.00016712,2]
[381397093,1756185092092,-3513.53,0.00016712,2]
[381397094,1756185092101,-855.69,0.00016712,2]
[381397095,1756185092110,-575.19,0.00016712,2]
[381397096,1756185092119,-400.0,0.00016712,2]
[381397097,1756185092128,-784.16,0.00016712,2]
[381397098,1756185092137,-400.0,0.00016712,2]
[381397099,1756185092147,-908.77,0.00016712,2]
[381397100,1756185092156,-1358.78,0.00016712,2]
[381397101,1756185092166,-1462.01,0.00016712,2]
[381397102,1756185092175,-1127.95,0.00016712,2]
[381397103,1756185092184,-1578.25,0.00016712,2]
[381397104,1756185092193,-400.0,0.00016712,2]
[381397105,1756185092203,-843.6,0.00016712,2]
[381397106,1756185092212,-970.12,0.00016712,2]
[381397107,1756185092221,-1124.04,0.00016712,2]
[381397108,1756185092230,-816.56,0.00016712,2]
[381397109,1756185092239,-400.0,0.00016712,2]
[381397110,1756185092249,-795.43,0.00016712,2]
[381397111,1756185092258,-400.0,0.00016712,2]
[381397112,1756185092268,-473.56,0.00016712,2]
[381397113,1756185092278,-400.0,0.00016712,2]
[381397114,1756185092288,-400.0,0.00016712,2]
[381397115,1756185092297,-400.0,0.00016712,2]
[381397116,1756185092413,-1844.62,0.00016712,2]
[381397117,1756185092424,-400.0,0.00016712,2]
[381397118,1756185092433,-400.0,0.00016712,2]
[381397119,1756185092442,-400.0,0.00016712,2]
[381397120,1756185092451,-1095.05,0.00016712,2]
[381397121,1756185092461,-665.22,0.00016712,2]
[381397122,1756185092470,-1160.21,0.00016712,2]
[381397123,1756185092479,-1675.03,0.00016712,2]
[381397124,1756185092488,-400.0,0.00016712,2]
[381397125,1756185092497,-972.38,0.00016712,2]
[381397126,1756185092507,-6331.17,0.00016712,2]
[381397127,1756185092516,-400.0,0.00016712,2]
[381397128,1756185092526,-848.75,0.00016712,2]
[381397129,1756185092535,-400.0,0.00016712,2]
[381397130,1756185092544,-491.84,0.00016712,2]
[381397131,1756185092554,-400.0,0.00016712,2]
[381397132,1756185092563,-1163.73,0.00016712,2]
[381397133,1756185092572,-400.0,0.00016712,2]
[381397134,1756185092581,-750.71,0.00016712,2]
[381397135,1756185092591,-400.0,0.00016712,2]
[381397136,1756185092601,-699.55,0.00016712,2]
[381397137,1756185092610,-1298.75,0.00016712,2]
[381397138,1756185092619,-400.0,0.00016712,2]
[381397139,1756185092628,-1575.78,0.00016712,2]
[381397140,1756185092637,-736.39,0.00016712,2]
[381397141,1756185092647,-882.34,0.00016712,2]
[381397142,1756185092656,-400.0,0.00016712,2]
[381397143,1756185092665,-458.94,0.00016712,2]
[381397144,1756185092674,-2238.24,0.00016712,2]
[381397145,1756185092683,-577.15,0.00016712,2]
[381397146,1756185092693,-680.8,0.00016712,2]
[381397147,1756185092707,-400.0,0.00016712,2]
[381397148,1756185092719,-400.0,0.00016712,2]
[381397149,1756185092728,-686.28,0.00016712,2]
[381397150,1756185092738,-743.51,0.00016712,2]
[381397151,1756185092747,-641.72,0.00016712,2]
[381397152,1756185092755,-1110.84,0.00016712,2]
[381397153,1756185092764,-1083.42,0.00016712,2]
[381397154,1756185092775,-936.76,0.00016712,2]
[381397155,1756185092784,-611.45,0.00016712,2]
[381397156,1756185092795,-400.0,0.00016712,2]
[381397157,1756185092805,-749.3,0.00016712,2]
[381397158,1756185092814,-13808.48,0.00016712,2]
[381397159,1756185092823,-510.65,0.00016712,2]
[381397160,1756185092832,-794.26,0.00016712,2]
[381397161,1756185092842,-1535.83,0.00016712,2]
[381397162,1756185092851,-1474.16,0.00016712,2]
[381397163,1756185092859,-1216.05,0.00016712,2]
[381397164,1756185092869,-400.0,0.00016712,2]
[381397165,1756185092878,-469.77,0.00016712,2]
[381397166,1756185092887,-1339.12,0.00016712,2]
[381397167,1756185092897,-400.0,0.00016712,2]
[381397168,1756185092906,-1028.22,0.00016712,2]
[381397169,1756185092916,-1640.73,0.00016712,2]
[381397170,1756185092926,-937.7,0.00016712,2]
[381397171,1756185092937,-400.0,0.00016712,2]
[381397172,1756185092947,-400.0,0.00016712,2]
[381397173,1756185092956,-1473.64,0.00016712,2]
[381397174,1756185092966,-1061.7,0.00016712,2]
[381397175,1756185092976,-400.0,0.00016712,2]
[381397176,1756185092986,-1325.72,0.00016712,2]
[381397177,1756185092999,-400.0,0.00016712,2]
[381397178,1756185093008,-642.57,0.00016712,2]
[381397179,1756185093017,-475.12,0.00016712,2]
[381397180,1756185093028,-867.48,0.00016712,2]
[381397181,1756185093037,-488.7,0.00016712,2]
[381397182,1756185093046,-400.0,0.00016712,2]
[381397183,1756185093055,-478.64,0.00016712,2]
[381397184,1756185093065,-518.67860892,0.00016712,2]
[381397185,1756185093075,-1016.17,0.00016712,2]
[381397186,1756185093084,-523.34,0.00016712,2]
[381397187,1756185093094,-457.26,0.00016712,2]
[381397188,1756185093104,-697.07,0.00016712,2]
[381397189,1756185093114,-2266.04,0.00016712,2]
[381397190,1756185093123,-767.7,0.00016712,2]
[381397191,1756185093133,-1314.16,0.00016712,2]
[381397192,1756185093143,-956.49,0.00016712,2]
[381397193,1756185093152,-400.0,0.00016712,2]
[381397194,1756185093162,-1321.53,0.00016712,2]
[381397195,1756185093171,-1113.09,0.00016712,2]
[381397196,1756185093180,-713.28,0.00016712,2]
[381397197,1756185093190,-1403.22,0.00016712,2]
[381397198,1756185093199,-400.0,0.00016712,2]
[381397199,1756185093209,-785.83,0.00016712,2]
[381397200,1756185093218,-1570.98,0.00016712,2]
[381397201,1756185093228,-400.0,0.00016712,2]
[381397202,1756185093237,-400.0,0.00016712,2]
[381397203,1756185093246,-400.0,0.00016712,2]
[381397204,1756185093255,-946.05,0.00016712,2]
[381397205,1756185093264,-954.65,0.00016712,2]
[381397206,1756185093274,-843.54,0.00016712,2]
[381397207,1756185093284,-801.97,0.00016712,2]
[381397208,1756185093293,-1017.77,0.00016712,2]
[381397209,1756185093302,-511.55,0.00016712,2]
[381397210,1756185093311,-781.14,0.00016712,2]
[381397211,1756185093321,-1243.21,0.00016712,2]
[381397212,1756185093331,-811.09,0.00016712,2]
[381397213,1756185093341,-578.17,0.00016712,2]
[381397214,1756185093350,-1212.89,0.00016712,2]
[381397215,1756185093359,-479.94,0.00016712,2]
[381397216,1756185093368,-1587.64,0.00016712,2]
[381397217,1756185093378,-400.0,0.00016712,2]
[381397218,1756185093387,-454.56,0.00016712,2]
[381397219,1756185093396,-615.51,0.00016712,2]
[381397220,1756185093405,-1273.48,0.00016712,2]
[381397221,1756185093415,-400.0,0.00016712,2]
[381397222,1756185093425,-400.0,0.00016712,2]
[381397223,1756185093435,-919.93,0.00016712,2]
[381397224,1756185093445,-808.39,0.00016712,2]
[381397225,1756185093455,-400.0,0.00016712,2]
[381397226,1756185093466,-400.0,0.00016712,2]
[381397227,1756185093476,-725.26,0.00016712,2]
[381397228,1756185093485,-403.03,0.00016712,2]
[381397229,1756185093495,-829.84,0.00016712,2]
[381397230,1756185093505,-562.6,0.00016712,2]
[381397231,1756185093514,-525.67,0.00016712,2]
[381397232,1756185093524,-2310.34,0.00016712,2]
[381397233,1756185093534,-419.16,0.00016712,2]
[381397234,1756185093543,-884.55,0.00016712,2]
[381397235,1756185093553,-400.0,0.00016712,2]
[381397236,1756185093562,-669.1,0.00016712,2]
[381397237,1756185093572,-631.22,0.00016712,2]
[381397238,1756185093581,-907.22,0.00016712,2]
[381397239,1756185093591,-1073.84,0.00016712,2]
[381397240,1756185093601,-883.93,0.00016712,2]
[381397241,1756185093611,-1455.82,0.00016712,2]
[381397242,1756185093620,-873.84,0.00016712,2]
[381397243,1756185093629,-450.74,0.00016712,2]
[381397244,1756185093638,-713.66,0.00016712,2]
[381397245,1756185093648,-1449.77,0.00016712,2]
[381397246,1756185093658,-583.58,0.00016712,2]
[381397247,1756185093667,-694.14,0.00016712,2]
[381397248,1756185093676,-710.69,0.00016712,2]
[381397249,1756185093685,-400.0,0.00016712,2]
[381397250,1756185093695,-400.0,0.00016712,2]
[381397251,1756185093707,-699.22,0.00016712,2]
[381397252,1756185093717,-600.44,0.00016712,2]
[381397253,1756185093727,-734.98,0.00016712,2]
[381397254,1756185093736,-1370.18,0.00016712,2]
[381397255,1756185093746,-400.0,0.00016712,2]
[381397256,1756185093755,-848.43,0.00016712,2]
[381397257,1756185093765,-820.73,0.00016712,2]
[381397258,1756185093775,-756.94,0.00016712,2]
[381397259,1756185093785,-988.52,0.00016712,2]
[381397260,1756185093794,-5315.54,0.00016712,2]
[381397261,1756185093804,-816.87,0.00016712,2]
[381397262,1756185093814,-699.05,0.00016712,2]
[381397263,1756185093823,-990.41,0.00016712,2]
[381397264,1756185093832,-400.0,0.00016712,2]
[381397265,1756185093841,-739.03,0.00016712,2]
[381397266,1756185093851,-1449.36,0.00016712,2]
[381397267,1756185093860,-625.92,0.00016712,2]
[381397268,1756185093870,-1120.4,0.00016712,2]
[381397269,1756185093880,-400.0,0.00016712,2]
[381397270,1756185093889,-629.06,0.00016712,2]
[381397271,1756185093898,-703.92,0.00016712,2]
[381397272,1756185093907,-1605.98,0.00016712,2]
[381397273,1756185093917,-2526.66,0.00016712,2]
[381397274,1756185093926,-635.42,0.00016712,2]
[381397275,1756185093936,-839.16,0.00016712,2]
[381397276,1756185093945,-607.63,0.00016712,2]
[381397277,1756185093955,-746.63,0.00016712,2]
[381397278,1756185093965,-1194.34,0.00016712,2]
[381397279,1756185093974,-400.0,0.00016712,2]
[381397280,1756185093984,-1162.61,0.00016712,2]
[381397281,1756185093994,-693.74,0.00016712,2]
[381397282,1756185094003,-400.0,0.00016712,2]
[381397283,1756185094013,-400.0,0.00016712,2]
[381397284,1756185094023,-1322.8,0.00016712,2]
[381397285,1756185094033,-1247.85,0.00016712,2]
[381397286,1756185094043,-400.0,0.00016712,2]
[381397287,1756185094052,-1126.65,0.00016712,2]
[381397288,1756185094062,-1143.63,0.00016712,2]
[381397289,1756185094071,-400.0,0.00016712,2]
[381397290,1756185094080,-400.0,0.00016712,2]
[381397291,1756185094090,-401.21,0.00016712,2]
[381397292,1756185094099,-1186.97,0.00016712,2]
[381397293,1756185094109,-400.0,0.00016712,2]
[381397294,1756185094118,-400.0,0.00016712,2]
[381397295,1756185094127,-350.94512454,0.00016712,2]
[381397296,1756185094137,-2500.29,0.00016712,2]
[381397297,1756185094147,-400.0,0.00016712,2]
[381397298,1756185094156,-830.37,0.00016712,2]
[381397299,1756185094166,-400.0,0.00016712,2]
[381397300,1756185094175,-848.53,0.00016712,2]
[381397301,1756185094184,-558.67,0.00016712,2]
[381397302,1756185094194,-400.0,0.00016712,2]
[381397303,1756185094204,-1260.63,0.00016712,2]
[381397304,1756185094214,-493.99,0.00016712,2]
[381397305,1756185094223,-729.3,0.00016712,2]
[381397306,1756185094233,-400.0,0.00016712,2]
[381397307,1756185094242,-403.5,0.00016712,2]
[381397308,1756185094252,-1075.45,0.00016712,2]
[381397309,1756185094261,-629.25,0.00016712,2]
[381397310,1756185094271,-778.75,0.00016712,2]
[381397311,1756185094280,-669.39,0.00016712,2]
[381397312,1756185094289,-1243.55,0.00016712,2]
[381397313,1756185094300,-1415.03,0.00016712,2]
[381397314,1756185094310,-510.95,0.00016712,2]
[381397315,1756185094319,-441.46,0.00016712,2]
[381397316,1756185094328,-643.96,0.00016712,2]
[381397317,1756185094338,-1253.5,0.00016712,2]
[381397318,1756185094347,-482.41,0.00016712,2]
[381397319,1756185094356,-400.0,0.00016712,2]
[381397320,1756185094366,-1271.72,0.00016712,2]
[381397321,1756185094375,-400.0,0.00016712,2]
[381397322,1756185094384,-927.88,0.00016712,2]
[381397323,1756185094394,-610.73,0.00016712,2]
[381397324,1756185094403,-1563.25,0.00016712,2]
[381397325,1756185094412,-400.39400164,0.00016712,2]
[381397326,1756185094422,-776.3,0.00016712,2]
[381397327,1756185094432,-1204.66,0.00016712,2]
[381397328,1756185094442,-400.0,0.00016712,2]
[381397329,1756185094451,-2203.12,0.00016712,2]
[381397330,1756185094461,-921.22,0.00016712,2]